fUSD/lending_fUSD_20250923
["ID","MTS","AMOUNT","RATE_DAILY","PERIOD"]
[387226978,1758661870681,-151.0,0.00024657,7]
[387226979,1758661870691,-400.0,0.00024657,3]
[387226980,1758661870701,-1802.867819,0.00024657,7]
[387226981,1758661870711,-151.0,0.00024657,7]
[387226982,1758661870721,-400.0,0.00024657,3]
[387226983,1758661870731,-1802.867819,0.00024657,7]
[387226984,1758661870742,-748.63,0.00024657,3]
[387226985,1758661870752,-400.0,0.00024657,3]
[387226986,1758661870763,-1802.867819,0.00024657,7]
[387226987,1758661870773,-151.0,0.00024657,7]
[387226988,1758661870783,-1802.867819,0.00024657,7]
[387226989,1758661870793,-151.0,0.00024657,7]
[387226990,1758661870804,-1859.96,0.00024657,3]
[387226991,1758661870814,-1802.867819,0.00024657,7]
[387226992,1758661870824,-151.0,0.00024657,7]
[387226993,1758661870834,-1802.867819,0.00024657,7]
[387226994,1758661870844,-151.0,0.00024657,7]
[387226995,1758661870855,-1802.867819,0.00024657,7]
[387226996,1758661870865,-151.0,0.00024657,7]
[387226997,1758661870875,-1802.867819,0.00024657,7]
[387226998,1758661870885,-737.92,0.00024657,3]
[387226999,1758661870895,-151.0,0.00024657,7]
[387227000,1758661870906,-1802.867819,0.00024657,7]
[387227001,1758661870916,-866.73,0.00024657,3]
[387227002,1758661870925,-151.0,0.00024657,7]
[387227003,1758661870935,-1802.867819,0.00024657,7]
[387227004,1758661870946,-151.0,0.00024657,7]
[387227005,1758661870956,-409.33967049,0.00024657,3]
[387227006,1758661870966,-1802.867819,0.00024657,7]
[387227007,1758661870977,-151.0,0.00024657,7]
[387227008,1758661870986,-1802.867819,0.00024657,7]
[387227009,1758661870997,-400.0,0.00024657,3]
[387227010,1758661871008,-151.0,0.00024657,7]
[387227011,1758661871018,-453.36,0.00024657,3]
[387227012,1758661871028,-253.042081,0.00024657,7]
[387227013,1758661871038,-1802.867819,0.00024657,7]
[387227014,1758661871047,-1802.867827,0.00024657,7]
[387227015,1758661871058,-400.0,0.00024657,3]
[387227016,1758661871069,-400.0,0.00024657,3]
[387227017,1758661871083,-400.0,0.00024657,3]
[387227018,1758661871093,-400.0,0.00024657,3]
[387227019,1758661871103,-400.0,0.00024657,3]
[387227020,1758661871114,-2785.79,0.00024657,3]
[387227021,1758661871124,-400.0,0.00024657,3]
[387227022,1758661871134,-400.0,0.00024657,3]
[387227023,1758661871145,-400.0,0.00024657,3]
[387227024,1758661871155,-151.0,0.00024657,7]
[387227025,1758661871166,-400.0,0.00024657,3]
[387227026,1758661871176,-151.0,0.00024657,7]
[387227027,1758661871187,-151.0,0.00024657,7]
[387227028,1758661871197,-151.0,0.00024657,7]
[387227029,1758661871206,-151.0,0.00024657,7]
[387227030,1758661871216,-151.0,0.00024657,7]
[387227031,1758661871227,-151.0,0.00024657,7]
[387227032,1758661871237,-416.66,0.00024657,3]
[387227033,1758661871247,-400.0,0.00024657,3]
[387227034,1758661871256,-400.0,0.00024657,3]
[387227035,1758661871266,-792.15,0.00024657,3]
[387227036,1758661871276,-1879.13,0.00024657,3]
[387227037,1758661871286,-2632.58,0.00024657,3]
[387227038,1758661871296,-151.0,0.00024657,7]
[387227039,1758661871306,-4475.6,0.00024657,3]
[387227040,1758661871318,-1457.58,0.00024657,3]
[387227041,1758661871328,-400.0,0.00024657,3]
[387227042,1758661871338,-4945.57,0.00024657,3]
[387227043,1758661871348,-1294.06,0.00024657,3]
[387227044,1758661871358,-400.0,0.00024657,3]
[387227045,1758661871368,-400.0,0.00024657,3]
[387227046,1758661871378,-749.16,0.00024657,3]
[387227047,1758661871388,-400.0,0.00024657,3]
[387227048,1758661871398,-400.0,0.00024657,3]
[387227049,1758661871408,-1499.8,0.00024657,3]
[387227050,1758661871418,-1434.35,0.00024657,3]
[387227051,1758661871428,-400.0,0.00024657,3]
[387227052,1758661871437,-400.0,0.00024657,3]
[387227053,1758661871448,-400.0,0.00024657,3]
[387227054,1758661871458,-400.0,0.00024657,3]
[387227055,1758661871467,-400.0,0.00024657,3]
[387227056,1758661871477,-2040.78,0.00024657,3]
[387227057,1758661871487,-400.0,0.00024657,3]
[387227058,1758661871497,-615.93,0.00024657,3]
[387227059,1758661871506,-2345.85,0.00024657,3]
[387227060,1758661871516,-2466.04,0.00024657,3]
[387227061,1758661871526,-400.0,0.00024657,3]
[387227062,1758661871536,-1285.51,0.00024657,3]
[387227063,1758661871546,-1609.55,0.00024657,3]
[387227064,1758661871557,-400.0,0.00024657,3]
[387227065,1758661871567,-1904.25,0.00024657,3]
[387227066,1758661871578,-151.0,0.00024657,7]
[387227067,1758661871590,-151.0,0.00024657,7]
[387227068,1758661871600,-3296.54,0.00024657,3]
[387227069,1758661871610,-266.415883,0.00024657,7]
[387227070,1758661871620,-400.0,0.00024657,3]
[387227071,1758661871631,-2338.5,0.00024657,3]
[387227072,1758661871641,-400.0,0.00024657,3]
[387227073,1758661871651,-917.64,0.00024657,3]
[387227074,1758661871661,-722.52,0.00024657,3]
[387227075,1758661871671,-400.0,0.00024657,3]
[387227076,1758661871680,-400.0,0.00024657,3]
[387227077,1758661871690,-151.0,0.00024657,7]
[387227078,1758661871700,-400.0,0.00024657,3]
[387227079,1758661871709,-151.0,0.00024657,7]
[387227080,1758661871720,-151.0,0.00024657,7]
[387227081,1758661871729,-151.0,0.00024657,7]
[387227082,1758661871739,-445.14,0.00024657,3]
[387227083,1758661871749,-577.02,0.00024657,3]
[387227084,1758661871763,-400.0,0.00024657,3]
[387227085,1758661871777,-1330.46,0.00024657,3]
[387227086,1758661871787,-597.44,0.00024657,3]
[387227087,1758661871797,-564.96,0.00024657,3]
[387227088,1758661871807,-400.0,0.00024657,3]
[387227089,1758661871817,-400.0,0.00024657,3]
[387227090,1758661871826,-3363.67,0.00024657,3]
[387227091,1758661871836,-1955.25,0.00024657,3]
[387227092,1758661871846,-283.72872515,0.00024657,3]
[387227093,1758661871856,-177.018764,0.00024657,7]
[387227094,1758661871866,-400.0,0.00024657,3]
[387227095,1758661871875,-177.018764,0.00024657,7]
[387227096,1758661871886,-644.02,0.00024657,3]
[387227097,1758661871896,-177.018764,0.00024657,7]
[387227098,1758661871906,-177.018764,0.00024657,7]
[387227099,1758661871915,-1185.7,0.00024657,3]
[387227100,1758661871925,-14467.01,0.00024657,3]
[387227101,1758661871935,-177.018764,0.00024657,7]
[387227102,1758661871944,-1986.63,0.00024657,3]
[387227103,1758661871954,-2713.61,0.00024657,3]
[387227104,1758661872369,-177.018764,0.00024657,7]
[387227105,1758661872379,-151.0,0.00024657,7]
[387227106,1758661872388,-177.018764,0.00024657,7]
[387227107,1758661872398,-1655.1,0.00024657,3]
[387227108,1758661872407,-400.0,0.00024657,3]
[387227109,1758661872416,-151.0,0.00024657,7]
[387227110,1758661872426,-177.018764,0.00024657,7]
[387227111,1758661872435,-151.0,0.00024657,7]
[387227112,1758661872444,-480.65,0.00024657,3]
[387227113,1758661872453,-177.018764,0.00024657,7]
[387227114,1758661872462,-151.0,0.00024657,7]
[387227115,1758661872471,-177.018764,0.00024657,7]
[387227116,1758661872480,-153.100415,0.00024657,7]
[387227117,1758661872490,-177.018764,0.00024657,7]
[387227118,1758661872500,-177.018764,0.00024657,7]
[387227119,1758661872509,-177.018764,0.00024657,7]
[387227120,1758661872518,-177.018764,0.00024657,7]
[387227121,1758661872528,-264.52164141,0.00024657,3]
[387227122,1758661872537,-177.018764,0.00024657,7]
[387227123,1758661872546,-400.0,0.00024657,3]
[387227124,1758661872560,-177.018764,0.00024657,7]
[387227125,1758661872569,-177.018764,0.00024657,7]
[387227126,1758661872579,-400.0,0.00024657,3]
[387227127,1758661872591,-177.018764,0.00024657,7]
[387227128,1758661872601,-177.018764,0.00024657,7]
[387227129,1758661872611,-151.0,0.00024657,7]
[387227130,1758661872621,-177.018762,0.00024657,7]
[387227131,1758661872631,-400.0,0.00024657,3]
[387227132,1758661872641,-151.0,0.00024657,7]
[387227133,1758661872651,-730.15,0.00024657,3]
[387227134,1758661872662,-400.0,0.00024657,3]
[387227135,1758661872671,-2636.32,0.00024657,3]
[387227136,1758661872681,-964.91,0.00024657,3]
[387227137,1758661872690,-2199.679623,0.00024657,7]
[387227138,1758661872700,-2199.679623,0.00024657,7]
[387227139,1758661872709,-151.0,0.00024657,7]
[387227140,1758661872719,-2169.87,0.00024657,3]
[387227141,1758661872728,-7663.69,0.00024657,3]
[387227142,1758661872738,-152.771596,0.00024657,7]
[387227143,1758661872747,-2199.679623,0.00024657,7]
[387227144,1758661872756,-162.934578,0.00024657,7]
[387227145,1758661872766,-2199.679623,0.00024657,7]
[387227146,1758661872775,-11794.83,0.00024657,3]
[387227147,1758661872784,-1767.02,0.00024657,3]
[387227148,1758661872796,-2199.679623,0.00024657,7]
[387227149,1758661872807,-400.0,0.00024657,3]
[387227150,1758661872817,-2199.679623,0.00024657,7]
[387227151,1758661872828,-400.0,0.00024657,3]
[387227152,1758661872839,-2199.679623,0.00024657,7]
[387227153,1758661872850,-151.0,0.00024657,7]
[387227154,1758661872859,-468.92,0.00024657,3]
[387227155,1758661872870,-2199.679623,0.00024657,7]
[387227156,1758661872879,-151.0,0.00024657,7]
[387227157,1758661872889,-400.0,0.00024657,3]
[387227158,1758661872898,-2199.679623,0.00024657,7]
[387227159,1758661872908,-151.0,0.00024657,7]
[387227160,1758661872917,-2199.679623,0.00024657,7]
[387227161,1758661872926,-670.23,0.00024657,3]
[387227162,1758661872936,-2199.679623,0.00024657,7]
[387227163,1758661872945,-151.0,0.00024657,7]
[387227164,1758661872955,-2199.679623,0.00024657,7]
[387227165,1758661872964,-151.0,0.00024657,7]
[387227166,1758661872974,-465.79,0.00024657,3]
[387227167,1758661872983,-151.0,0.00024657,7]
[387227168,1758661872992,-2199.679623,0.00024657,7]
[387227169,1758661873002,-151.0,0.00024657,7]
[387227170,1758661873011,-151.0,0.00024657,7]
[387227171,1758661873020,-2199.679623,0.00024657,7]
[387227172,1758661873029,-151.0,0.00024657,7]
[387227173,1758661873039,-151.0,0.00024657,7]
[387227174,1758661873048,-2199.679623,0.00024657,7]
[387227175,1758661873057,-176.885203,0.00024657,7]
[387227176,1758661873067,-156.216136,0.00024657,7]
[387227177,1758661873076,-151.0,0.00024657,7]
[387227178,1758661873086,-647.18,0.00024657,3]
[387227179,1758661873096,-2199.679623,0.00024657,7]
[387227180,1758661873106,-151.0,0.00024657,7]
[387227181,1758661873116,-400.0,0.00024657,3]
[387227182,1758661873126,-2199.679623,0.00024657,7]
[387227183,1758661873136,-151.0,0.00024657,7]
[387227184,1758661873149,-1842.11,0.00024657,3]
[387227185,1758661873159,-2717.69,0.00024657,3]
[387227186,1758661873168,-2199.679623,0.00024657,7]
[387227187,1758661873177,-151.0,0.00024657,7]
[387227188,1758661873186,-2199.679623,0.00024657,7]
[387227189,1758661873195,-151.0,0.00024657,7]
[387227190,1758661873205,-2199.679622,0.00024657,7]
[387227191,1758661873218,-151.0,0.00024657,7]
[387227192,1758661873230,-151.0,0.00024657,7]
[387227193,1758661873239,-151.0,0.00024657,7]
[387227194,1758661873249,-2137.87,0.00024657,3]
[387227195,1758661873258,-151.0,0.00024657,7]
[387227196,1758661873270,-400.0,0.00024657,3]
[387227197,1758661873287,-151.0,0.00024657,7]
[387227198,1758661873296,-153.985305,0.00024657,7]
[387227199,1758661873305,-151.0,0.00024657,7]
[387227200,1758661873315,-151.0,0.00024657,7]
[387227201,1758661873324,-151.0,0.00024657,7]
[387227202,1758661873333,-400.0,0.00024657,3]
[387227203,1758661873343,-508.31,0.00024657,3]
[387227204,1758661873352,-400.0,0.00024657,3]
[387227205,1758661873361,-151.0,0.00024657,7]
[387227206,1758661873371,-151.0,0.00024657,7]
[387227207,1758661873380,-151.0,0.00024657,7]
[387227208,1758661873391,-151.0,0.00024657,7]
[387227209,1758661873401,-151.0,0.00024657,7]
[387227210,1758661873410,-157.0558,0.00024657,7]
[387227211,1758661873419,-151.0,0.00024657,7]
[387227212,1758661873429,-151.0,0.00024657,7]
[387227213,1758661873438,-156.606406,0.00024657,7]
[387227214,1758661873448,-151.0,0.00024657,7]
[387227215,1758661873457,-403.65971311,0.00024657,3]
[387227216,1758661873466,-151.0,0.00024657,7]
[387227217,1758661873477,-151.0,0.00024657,7]
[387227218,1758661873486,-151.0,0.00024657,7]
[387227219,1758661873496,-151.0,0.00024657,7]
[387227220,1758661873505,-151.0,0.00024657,7]
[387227221,1758661873515,-500.0,0.00024657,2]
[387227222,1758661873525,-400.0,0.00024657,3]
[387227223,1758661873535,-151.0,0.00024657,7]
[387227224,1758661873544,-151.0,0.00024657,7]
[387227225,1758661873554,-151.0,0.00024657,7]
[387227226,1758661873563,-708.36,0.00024657,3]
[387227227,1758661873573,-151.0,0.00024657,7]
[387227228,1758661873583,-151.0,0.00024657,7]
[387227229,1758661873594,-151.0,0.00024657,7]
[387227230,1758661873604,-400.0,0.00024657,3]
[387227231,1758661873613,-1504.78,0.00024657,3]
[387227232,1758661873623,-555.73,0.00024657,3]
[387227233,1758661873633,-503.33,0.00024657,3]
[387227234,1758661873643,-151.0,0.00024657,7]
[387227235,1758661873652,-151.0,0.00024657,7]
[387227236,1758661873663,-400.0,0.00024657,3]
[387227237,1758661873674,-174.419177,0.00024657,7]
[387227238,1758661873683,-2022.73,0.00024657,3]
[387227239,1758661873692,-400.0,0.00024657,3]
[387227240,1758661873702,-344.453349,0.00024657,7]
[387227241,1758661873711,-400.0,0.00024657,3]
[387227242,1758661873721,-344.453349,0.00024657,7]
[387227243,1758661873730,-344.453349,0.00024657,7]
[387227244,1758661873740,-2104.52,0.00024657,3]
[387227245,1758661873751,-400.0,0.00024657,3]
[387227246,1758661873761,-344.453349,0.00024657,7]
[387227247,1758661873771,-344.453349,0.00024657,7]
[387227248,1758661873780,-344.453349,0.00024657,7]
[387227249,1758661873790,-687.03,0.00024657,3]
[387227250,1758661873800,-151.0,0.00024657,7]
[387227251,1758661873809,-344.453349,0.00024657,7]
[387227252,1758661873818,-151.0,0.00024657,7]
[387227253,1758661873828,-344.453349,0.00024657,7]
[387227254,1758661873838,-12237.31,0.00024657,3]
[387227255,1758661873848,-438.27,0.00024657,3]
[387227256,1758661873857,-151.0,0.00024657,7]
[387227257,1758661873867,-344.453349,0.00024657,7]
[387227258,1758661873876,-151.0,0.00024657,7]
[387227259,1758661873886,-344.453349,0.00024657,7]
[387227260,1758661873895,-344.453349,0.00024657,7]
[387227261,1758661873906,-151.0,0.00024657,7]
[387227262,1758661873915,-516.66,0.00024657,3]
[387227263,1758661873924,-344.453349,0.00024657,7]
[387227264,1758661873935,-344.453349,0.00024657,7]
[387227265,1758661873944,-344.453349,0.00024657,7]
[387227266,1758661873953,-3018.89,0.00024657,3]
[387227267,1758661873963,-344.453349,0.00024657,7]
[387227268,1758661873972,-344.453349,0.00024657,7]
[387227269,1758661873982,-344.453349,0.00024657,7]
[387227270,1758661873992,-344.453349,0.00024657,7]
[387227271,1758661874002,-411.85,0.00024657,3]
[387227272,1758661874011,-344.453349,0.00024657,7]
[387227273,1758661874022,-344.453357,0.00024657,7]
[387227274,1758661874032,-400.0,0.00024657,3]
[387227275,1758661874044,-400.0,0.00024657,3]
[387227276,1758661874053,-685.06,0.00024657,3]
[387227277,1758661874063,-400.0,0.00024657,3]
[387227278,1758661874073,-2715.43,0.00024657,3]
[387227279,1758661874084,-16706.4,0.00024657,3]
[387227280,1758661874096,-400.0,0.00024657,3]
[387227281,1758661874107,-400.0,0.00024657,3]
[387227282,1758661874117,-400.0,0.00024657,3]
[387227283,1758661874128,-400.0,0.00024657,3]
[387227284,1758661874137,-400.0,0.00024657,3]
[387227285,1758661874149,-782.28,0.00024657,3]
[387227286,1758661874159,-400.0,0.00024657,3]
[387227287,1758661874169,-400.0,0.00024657,3]
[387227288,1758661874179,-400.0,0.00024657,3]
[387227289,1758661874188,-1781.89,0.00024657,3]
[387227290,1758661874198,-543.98,0.00024657,3]
[387227291,1758661874208,-400.0,0.00024657,3]
[387227292,1758661874219,-400.0,0.00024657,3]
[387227293,1758661874229,-5774.99,0.00024657,3]
[387227294,1758661874239,-2050.32,0.00024657,3]
[387227295,1758661874248,-1816.5,0.00024657,3]
[387227296,1758661874257,-1720.5,0.00024657,3]
[387227297,1758661874267,-4154.79,0.00024657,3]
[387227298,1758661874276,-400.0,0.00024657,3]
[387227299,1758661874286,-400.0,0.00024657,3]
[387227300,1758661874295,-789.68,0.00024657,3]
[387227301,1758661874305,-400.0,0.00024657,3]
[387227302,1758661874314,-1172.37,0.00024657,3]
[387227303,1758661874363,-400.0,0.00024657,3]
[387227304,1758661874373,-593.4,0.00024657,3]
[387227305,1758661874383,-16419.81,0.00024657,2]
[387227306,1758661874392,-400.0,0.00024657,3]
[387227307,1758661874402,-16419.81,0.00024657,2]
[387227308,1758661874411,-16419.81,0.00024657,2]
[387227309,1758661874421,-16419.81,0.00024657,2]
[387227310,1758661874430,-16419.81,0.00024657,2]
[387227311,1758661874440,-16419.81,0.00024657,2]
[387227312,1758661874449,-16419.81,0.00024657,2]
[387227313,1758661874458,-16419.81,0.00024657,2]
[387227314,1758661874468,-16419.81,0.00024657,2]
[387227315,1758661874477,-1296.78,0.00024657,3]
[387227316,1758661874487,-400.0,0.00024657,3]
[387227317,1758661874497,-16419.81,0.00024657,2]
[387227318,1758661874506,-2897.01,0.00024657,3]
[387227319,1758661874516,-16419.81,0.00024657,2]
[387227320,1758661874526,-400.0,0.00024657,3]
[387227321,1758661874535,-16419.81,0.00024657,2]
[387227322,1758661874545,-16419.81,0.00024657,2]
[387227323,1758661874555,-400.0,0.00024657,3]
[387227324,1758661874565,-400.0,0.00024657,3]
[387227325,1758661874575,-1886.87,0.00024657,3]
[387227326,1758661874587,-2169.42,0.00024657,3]
[387227327,1758661874598,-400.0,0.00024657,3]
[387227328,1758661874613,-1618.79,0.00024657,3]
[387227329,1758661874623,-1364.0,0.00024657,3]
[387227330,1758661874633,-400.0,0.00024657,3]
[387227331,1758661874643,-516.62,0.00024657,3]
[387227332,1758661874652,-400.0,0.00024657,3]
[387227333,1758661874662,-1753.04,0.00024657,3]
[387227334,1758661874672,-462.47,0.00024657,3]
[387227335,1758661874681,-919.61,0.00024657,3]
[387227336,1758661874690,-400.0,0.00024657,3]
[387227337,1758661874700,-400.0,0.00024657,3]
[387227338,1758661874709,-2595.72,0.00024657,3]
[387227339,1758661874718,-400.0,0.00024657,3]
[387227340,1758661874728,-151.0,0.00024657,7]
[387227341,1758661874738,-153.656454,0.00024657,7]
[387227342,1758661874752,-400.0,0.00024657,3]
[387227343,1758661874762,-1280.49,0.00024657,3]
[387227344,1758661874771,-2252.39,0.00024657,3]
[387227345,1758661874781,-400.0,0.00024657,3]
[387227346,1758661874791,-686.6,0.00024657,3]
[387227347,1758661874801,-474.44,0.00024657,3]
[387227348,1758661874810,-574.41,0.00024657,3]
[387227349,1758661874820,-8267.3,0.00024657,3]
[387227350,1758661874830,-515.07,0.00024657,3]
[387227351,1758661874840,-400.0,0.00024657,3]
[387227352,1758661874850,-2019.27,0.00024657,3]
[387227353,1758661874861,-8704.69,0.00024657,3]
[387227354,1758661874871,-400.0,0.00024657,3]
[387227355,1758661874880,-2411.09,0.00024657,3]
[387227356,1758661874890,-151.0,0.00024657,7]
[387227357,1758661874899,-151.254444,0.00024657,7]
[387227358,1758661874909,-151.0,0.00024657,7]
[387227359,1758661874918,-151.254444,0.00024657,7]
[387227360,1758661874928,-151.0,0.00024657,7]
[387227361,1758661874937,-151.254444,0.00024657,7]
[387227362,1758661874946,-151.0,0.00024657,7]
[387227363,1758661874956,-151.254444,0.00024657,7]
[387227364,1758661874966,-151.0,0.00024657,7]
[387227365,1758661874976,-151.254444,0.00024657,7]
[387227366,1758661874986,-151.0,0.00024657,7]
[387227367,1758661874996,-151.254444,0.00024657,7]
[387227368,1758661875005,-151.254444,0.00024657,7]
[387227369,1758661875015,-1808.41,0.00024657,3]
[387227370,1758661875025,-151.254444,0.00024657,7]
[387227371,1758661875034,-151.0,0.00024657,7]
[387227372,1758661875043,-400.0,0.00024657,3]
[387227373,1758661875052,-151.254444,0.00024657,7]
[387227374,1758661875062,-151.0,0.00024657,7]
[387227375,1758661875071,-151.254444,0.00024657,7]
[387227376,1758661875081,-151.0,0.00024657,7]
[387227377,1758661875090,-2119.33,0.00024657,3]
[387227378,1758661875100,-400.0,0.00024657,3]
[387227379,1758661875110,-1673.92,0.00024657,3]
[387227380,1758661875119,-151.254444,0.00024657,7]
[387227381,1758661875128,-151.0,0.00024657,7]
[387227382,1758661875138,-151.254444,0.00024657,7]
[387227383,1758661875147,-400.0,0.00024657,3]
[387227384,1758661875157,-151.254444,0.00024657,7]
[387227385,1758661875166,-151.254444,0.00024657,7]
[387227386,1758661875177,-400.0,0.00024657,3]
[387227387,1758661875186,-151.254444,0.00024657,7]
[387227388,1758661875195,-151.254444,0.00024657,7]
[387227389,1758661875205,-651.96,0.00024657,3]
[387227390,1758661875214,-151.254444,0.00024657,7]
[387227391,1758661875224,-2645.92,0.00024657,3]
[387227392,1758661875233,-400.0,0.00024657,3]
[387227393,1758661875243,-995.32,0.00024657,3]
[387227394,1758661875252,-400.0,0.00024657,3]
[387227395,1758661875262,-151.254444,0.00024657,7]
[387227396,1758661875271,-651.96,0.00024657,3]
[387227397,1758661875280,-151.254444,0.00024657,7]
[387227398,1758661875290,-400.0,0.00024657,3]
[387227399,1758661875299,-651.96,0.00024657,3]
[387227400,1758661875308,-151.25444042,0.00024657,7]
[387227401,1758661875318,-400.0,0.00024657,3]
[387227402,1758661875327,-651.96,0.00024657,3]
[387227403,1758661875337,-496.1,0.00024657,3]
[387227404,1758661875346,-400.0,0.00024657,3]
[387227405,1758661875355,-3087.87,0.00024657,3]
[387227406,1758661875365,-651.96,0.00024657,3]
[387227407,1758661875375,-1674.27,0.00024657,3]
[387227408,1758661875384,-651.96,0.00024657,3]
[387227409,1758661875393,-1381.78,0.00024657,3]
[387227410,1758661875403,-14030.8,0.00024657,3]
[387227411,1758661875413,-400.0,0.00024657,3]
[387227412,1758661875423,-1810.46,0.00024657,3]
[387227413,1758661875434,-651.96,0.00024657,3]
[387227414,1758661875443,-400.0,0.00024657,3]
[387227415,1758661875453,-651.96,0.00024657,3]
[387227416,1758661875463,-1745.11,0.00024657,3]
[387227417,1758661875685,-400.0,0.00024657,3]
[387227418,1758661875695,-400.0,0.00024657,3]
[387227419,1758661875705,-400.0,0.00024657,3]
[387227420,1758661875714,-400.0,0.00024657,3]
[387227421,1758661875723,-651.96,0.00024657,3]
[387227422,1758661875733,-651.96,0.00024657,3]
[387227423,1758661875743,-651.96,0.00024657,3]
[387227424,1758661875752,-1963.62,0.00024657,3]
[387227425,1758661875762,-400.0,0.00024657,3]
[387227426,1758661875772,-304.592368,0.00024657,7]
[387227427,1758661875782,-483.33,0.00024657,3]
[387227428,1758661875791,-481.455919,0.00024657,7]
[387227429,1758661875800,-651.96,0.00024657,3]
[387227430,1758661875809,-400.0,0.00024657,3]
[387227431,1758661875820,-151.0,0.00024657,7]
[387227432,1758661875830,-304.592368,0.00024657,7]
[387227433,1758661875840,-481.455919,0.00024657,7]
[387227434,1758661875849,-304.592368,0.00024657,7]
[387227435,1758661875859,-151.0,0.00024657,7]
[387227436,1758661875869,-481.455919,0.00024657,7]
[387227437,1758661875878,-304.592368,0.00024657,7]
[387227438,1758661875887,-1156.13,0.00024657,3]
[387227439,1758661875897,-481.455919,0.00024657,7]
[387227440,1758661875906,-304.592368,0.00024657,7]
[387227441,1758661875916,-481.455919,0.00024657,7]
[387227442,1758661875925,-778.13,0.00024657,3]
[387227443,1758661875935,-400.0,0.00024657,3]
[387227444,1758661875945,-304.592368,0.00024657,7]
[387227445,1758661875954,-676.39,0.00024657,3]
[387227446,1758661875963,-481.455919,0.00024657,7]
[387227447,1758661875973,-304.592368,0.00024657,7]
[387227448,1758661875983,-1692.74,0.00024657,3]
[387227449,1758661875993,-481.455919,0.00024657,7]
[387227450,1758661876002,-304.592368,0.00024657,7]
[387227451,1758661876012,-481.455919,0.00024657,7]
[387227452,1758661876021,-304.592368,0.00024657,7]
[387227453,1758661876030,-151.0,0.00024657,7]
[387227454,1758661876040,-481.455919,0.00024657,7]
[387227455,1758661876049,-304.592368,0.00024657,7]
[387227456,1758661876059,-151.0,0.00024657,7]
[387227457,1758661876069,-9226.96,0.00024657,3]
[387227458,1758661876078,-481.455919,0.00024657,7]
[387227459,1758661876087,-267.67794051,0.00024657,3]
[387227460,1758661876097,-304.592368,0.00024657,7]
[387227461,1758661876106,-154.555073,0.00024657,7]
[387227462,1758661876115,-481.455919,0.00024657,7]
[387227463,1758661876125,-400.0,0.00024657,3]
[387227464,1758661876134,-304.592368,0.00024657,7]
[387227465,1758661876143,-481.455919,0.00024657,7]
[387227466,1758661876153,-304.592368,0.00024657,7]
[387227467,1758661876162,-1493.6,0.00024657,3]
[387227468,1758661876172,-481.455919,0.00024657,7]
[387227469,1758661876182,-304.592368,0.00024657,7]
[387227470,1758661876191,-304.592368,0.00024657,7]
[387227471,1758661876202,-400.0,0.00024657,3]
[387227472,1758661876211,-158.55,0.00024657,7]
[387227473,1758661876221,-158.55,0.00024657,7]
[387227474,1758661876231,-158.55,0.00024657,7]
[387227475,1758661876241,-481.455919,0.00024657,7]
[387227476,1758661876251,-481.455919,0.00024657,7]
[387227477,1758661876261,-158.55,0.00024657,7]